bitfinex/quotes_ETHUSD_20240610
["timestamp","ask_amount","ask_price","bid_price","bid_amount"]
[1718026394652,0.06229227,3668.3,3667.7,3.0]
[1718026397064,1.99129227,3668.3,3667.5,7.28]
[1718026397242,3.7709,3667.8,3667.5,7.28]
[1718026397438,8.1767,3667.7,3666.8,8.13629732]
[1718026397644,8.2384856,3667.7,3666.8,7.28]
[1718026398168,10.9650256,3667.7,3666.8,7.28]
[1718026398384,2.7267,3667.5,3666.8,7.28]
[1718026398664,1.17151856,3667.4,3666.8,7.28]
[1718026398832,3.4516,3667.2,3666.8,7.28]
[1718026399244,0.06098171,3667.1,3666.8,7.28]
[1718026400785,0.06098171,3667.1,3666.9,3.0]
[1718026402639,8.1767,3667.3,3667.0,2.72702]
[1718026402949,8.1767,3667.3,3667.2,2.72687]
[1718026403154,8.1767,3667.3,3667.2,5.72687]
[1718026426297,8.1767,3667.3,3667.2,8.45374]
[1718026433112,8.1767,3667.3,3667.2,9.25674]
[1718026434178,8.1767,3667.3,3667.2,11.98361]
[1718026434518,8.1767,3667.3,3667.2,14.3381225]
[1718026434814,8.14840521,3667.3,3667.2,18.59895242]
[1718026435175,8.20587242,3667.3,3667.2,18.66203196]
[1718026436322,8.20587242,3667.3,3667.2,17.23700472]
[1718026436495,8.20587242,3667.3,3667.2,18.37840232]
[1718026436676,8.14840521,3667.3,3667.2,18.37840232]
[1718026436876,8.20612335,3667.3,3667.2,18.37840232]
[1718026438086,8.20612335,3667.3,3667.2,17.23700472]
[1718026438603,8.20612335,3667.3,3667.2,18.66203196]
[1718026439016,8.14840521,3667.3,3667.2,18.66203196]
[1718026439312,8.20612335,3667.3,3667.2,18.66203196]
[1718026439519,8.20612335,3667.3,3667.2,17.23700472]
[1718026439881,8.20612335,3667.3,3667.2,18.66203196]
[1718026441004,3.7208,3668.7,3668.5,2.7259]
[1718026443217,2.867,3670.3,3668.3,1.0]
[1718026443218,3.494,3670.3,3668.3,1.0]
[1718026443425,2.72396,3671.2,3669.2,2.72536]
[1718026443426,0.803,3669.8,3669.2,2.72536]
[1718026443640,3.494,3669.5,3668.9,2.72556]
[1718026443803,4.196198,3669.5,3668.9,2.72556]
[1718026443998,4.196198,3669.5,3669.1,2.72544]
[1718026444487,0.803,3669.4,3668.8,10.00563]
[1718026444612,0.803,3669.4,3668.9,3.0]
[1718026444954,3.5605,3669.3,3668.9,3.0]
[1718026445438,3.5605,3669.3,3668.8,10.00563]
[1718026446616,3.5605,3669.3,3669.0,2.72551]
[1718026446944,3.5605,3669.3,3669.0,2.69751]
[1718026451031,2.72468,3670.2,3669.4,2.72519]
[1718026451032,3.3625,3670.1,3669.4,2.72519]
[1718026451383,0.05483168,3670.0,3669.4,2.72519]
[1718026452166,0.05483168,3670.0,3669.6,2.72506]
[1718026455862,0.05483168,3670.0,3669.8,2.72491]
[1718026456362,3.4249,3670.5,3670.2,2.72462]
[1718026456866,3.4152,3671.3,3670.6,2.72434]
[1718026458864,3.4152,3671.3,3670.7,3.0]
[1718026459068,3.3599,3671.7,3670.7,3.0]
[1718026459364,3.3599,3671.7,3670.6,3.0]
[1718026459580,3.3599,3671.7,3671.2,2.72383]
[1718026459727,3.3599,3672.1,3670.9,2.7241]
[1718026460070,3.3599,3672.1,3671.0,3.05447238]
[1718026460255,3.3599,3672.1,3671.4,2.72369]
[1718026460942,3.4155,3672.9,3672.0,2.72326]
[1718026461428,3.4155,3672.9,3671.8,7.28]
[1718026461429,3.4155,3672.9,3672.3,2.72306]
[1718026461624,6.19141,3673.4,3672.3,2.72306]
[1718026461840,0.05482616,3672.8,3672.3,2.72306]
[1718026462059,0.619141,3673.3,3672.3,2.72306]
[1718026462571,0.05482616,3673.2,3672.3,2.72306]
[1718026462933,0.05482616,3673.2,3672.6,2.72283]
[1718026463473,0.75,3674.2,3673.2,2.72238]
[1718026463474,3.3485,3674.1,3673.2,2.72238]
[1718026463635,3.3485,3674.1,3673.4,2.72222]
[1718026463969,3.3485,3674.7,3673.7,2.72199]
[1718026464772,2.72107,3675.1,3673.7,2.72199]
[1718026464773,0.05600886,3674.6,3673.7,2.72199]
[1718026464943,2.72107,3675.1,3673.7,2.72199]
[1718026465141,0.05600886,3674.5,3673.7,2.72199]
[1718026465362,1.926,3675.0,3673.7,2.72199]
[1718026465666,0.05672466,3674.4,3673.7,2.72199]
[1718026465885,2.72146,3674.5,3673.5,7.28]
[1718026466052,0.05672466,3674.3,3673.6,3.0]
[1718026466239,0.539746,3674.4,3673.6,3.0]
[1718026466432,0.05686426,3674.2,3673.6,3.0]
[1718026466682,0.539746,3674.4,3673.6,3.0]
[1718026466835,0.05686426,3674.1,3673.5,7.28]
[1718026467043,5.3338,3674.2,3673.5,7.28]
[1718026467349,8.05555,3674.2,3673.5,7.28]
[1718026467561,0.05655596,3674.1,3673.5,7.28]
[1718026468839,2.72186,3674.0,3673.5,7.28]
[1718026469037,0.8112216,3673.9,3673.5,7.28]
[1718026469402,0.86747497,3673.9,3673.5,7.28]
[1718026469741,0.05625337,3673.9,3673.5,7.28]
[1718026469943,0.3261206,3674.3,3673.5,7.28]
[1718026470180,0.0563872,3673.8,3673.5,7.28]
[1718026470391,0.3261206,3674.3,3673.5,7.28]
[1718026470676,0.0563872,3673.7,3673.5,7.28]
[1718026470986,0.3261206,3674.3,3673.5,7.28]
[1718026471168,0.0563872,3673.6,3673.5,7.28]
[1718026471477,0.30475806,3674.2,3673.5,7.28]
[1718026471673,0.30475806,3674.2,3673.3,2.72232]
[1718026471885,0.0563872,3674.1,3673.3,2.72232]
[1718026474585,0.0563872,3674.1,3673.4,3.0]
[1718026474774,0.3261206,3674.3,3673.5,2.72219]
[1718026475080,0.3261206,3674.3,3673.6,3.0]
[1718026478264,0.3261206,3674.3,3673.7,2.72204]
[1718026478462,2.72122,3674.9,3673.7,2.72204]
[1718026478814,2.72122,3674.9,3673.6,3.0]
[1718026478815,0.05241087,3674.2,3674.0,2.72179]
[1718026479091,3.42,3675.2,3674.3,2.72157]
[1718026479289,4.034093,3675.2,3674.3,2.72157]
[1718026479495,0.05243997,3675.1,3674.3,2.72157]
[1718026479963,0.05243997,3675.1,3674.6,2.72134]
[1718026480296,2.72064,3675.6,3674.8,2.72116]
[1718026480587,0.0506933,3675.0,3674.8,2.72116]
[1718026480788,2.72064,3675.6,3674.8,2.72116]
[1718026480979,0.050996,3674.9,3674.8,2.72116]
[1718026481177,0.272064,3675.5,3674.8,2.72116]
[1718026481861,0.050996,3675.4,3674.8,2.72116]
[1718026483291,2.7204,3676.0,3674.8,2.72116]
[1718026483491,0.050996,3675.3,3674.8,2.72116]
[1718026483677,0.050996,3675.2,3674.8,2.72116]
[1718026484062,0.93664,3675.8,3674.8,2.72116]
[1718026484260,0.55,3675.7,3674.8,2.72116]
[1718026484641,0.600996,3675.7,3674.8,2.72116]
[1718026484773,0.600996,3675.7,3675.0,2.72101]
[1718026485081,0.1537636,3675.6,3675.0,2.72101]
[1718026485403,0.1537636,3675.6,3675.2,2.72087]
[1718026485694,0.050996,3675.5,3675.2,2.72087]
[1718026486459,2.72013,3676.3,3675.2,2.72087]
[1718026486705,9.4711,3676.7,3675.7,2.72051]
[1718026486999,0.05142664,3676.2,3675.7,2.72051]
[1718026487163,0.75012,3676.6,3675.7,2.72051]
[1718026487363,0.05142664,3676.1,3675.7,2.72051]
[1718026487564,8.1607,3676.0,3675.7,2.72051]
[1718026487792,8.21212664,3676.0,3675.7,2.72051]
[1718026490613,9.0333393,3676.0,3675.4,2.72077]
[1718026491882,9.0333393,3676.0,3675.6,2.72059]
[1718026492145,8.21212664,3676.0,3675.0,7.28]
[1718026492282,8.21212664,3676.0,3675.8,2.72044]
[1718026493050,8.1607,3676.0,3675.8,2.72044]
[1718026493388,0.05092741,3675.9,3675.8,2.72044]
[1718026494181,0.05092741,3675.9,3675.8,5.44093]
[1718026494425,3.46941,3677.3,3676.6,2.71987]
[1718026494717,2.71919,3677.6,3676.6,2.71987]
[1718026494869,2.71919,3677.6,3676.8,2.71971]
[1718026494870,0.05160204,3677.2,3676.8,2.71971]
[1718026495361,0.05180554,3677.1,3676.8,2.71971]
[1718026495566,0.643389,3677.5,3676.8,2.71971]
[1718026495772,0.05180554,3677.0,3676.8,2.71971]
[1718026496056,0.643389,3677.5,3676.8,2.71971]
[1718026496264,0.05180554,3676.9,3676.8,2.71971]
[1718026496427,0.643389,3677.5,3676.8,2.71971]
[1718026496630,0.05180554,3676.9,3676.8,2.71971]
[1718026496856,3.7147,3677.7,3677.0,2.71955]
[1718026497040,2.71895,3677.9,3677.0,2.71955]
[1718026497226,0.05180554,3677.6,3677.0,2.71955]
[1718026497428,0.1249736,3678.1,3677.2,2.71941]
[1718026497643,0.05180554,3677.5,3677.2,2.71941]
[1718026497967,0.05251475,3677.4,3677.2,2.71941]
[1718026498260,0.1249736,3678.1,3676.7,0.55080735]
[1718026498464,0.1249736,3678.1,3677.4,2.71926]
[1718026498669,0.05251475,3677.9,3677.4,2.71926]
[1718026503368,0.05251475,3677.9,3677.6,2.71912]
[1718026504644,0.05251475,3677.9,3677.3,2.71936]
[1718026505769,2.7191,3677.7,3677.0,7.28]
[1718026505981,2.71927,3677.5,3677.0,7.28]
[1718026506343,2.71939,3677.3,3677.0,7.28]
[1718026506799,2.71953,3677.1,3677.0,7.28]
[1718026507082,3.55671455,3677.1,3676.3,2.72009]
[1718026507285,3.60779272,3677.1,3676.3,2.72009]
[1718026507604,2.71972,3676.9,3676.2,7.28]
[1718026507747,0.36079827,3676.8,3676.0,2.72031]
[1718026508097,2.71985,3676.7,3676.0,2.72031]
[1718026508404,2.72002,3676.5,3675.5,10.00064]
[1718026508992,2.72015,3676.3,3675.5,7.28]
[1718026509544,0.05024628,3676.2,3675.6,3.0]
[1718026509755,0.69789591,3676.2,3675.6,3.0]
[1718026512603,2.62389591,3676.2,3675.2,7.28]
[1718026512895,2.62389591,3676.2,3675.3,3.0]
[1718026513281,2.57364963,3676.2,3675.3,3.0]
[1718026513571,0.6495462,3676.1,3675.3,3.0]
[1718026514382,2.72055,3675.8,3675.3,3.0]
[1718026514880,2.72065,3675.6,3675.2,7.28]
[1718026515060,0.04957124,3675.7,3675.2,7.28]
[1718026515264,0.04931514,3675.5,3675.2,7.28]
[1718026515467,0.19755712,3675.7,3675.2,7.28]
[1718026515683,0.04931514,3675.4,3675.2,7.28]
[1718026515873,0.19755712,3675.7,3675.0,2.72103]
[1718026516185,0.04931514,3675.6,3675.1,3.0]
[1718026517586,2.72073,3675.5,3674.7,2.7213]
[1718026517759,0.29676023,3675.4,3674.8,3.0]
[1718026517951,0.34608117,3675.4,3674.8,3.0]
[1718026518371,0.34608117,3675.4,3674.9,2.72111]
[1718026518650,0.04932094,3675.4,3675.1,2.72096]
[1718026518847,0.04932094,3675.4,3675.3,2.72086]
[1718026519191,2.72,3676.5,3675.8,2.72044]
[1718026519482,0.62227,3676.4,3675.8,2.72044]
[1718026519647,3.5027,3676.6,3676.0,2.72029]
[1718026519847,2.71975,3676.9,3676.0,2.72029]
[1718026522095,3.4805,3677.1,3676.3,2.72012]
[1718026522294,3.7035,3677.5,3676.5,2.71992]
[1718026522466,5.6295,3677.5,3676.5,2.71992]
[1718026522672,8.1588,3677.4,3676.5,2.71992]
[1718026522902,10.87816,3677.4,3676.5,2.71992]
[1718026523057,1.650766,3677.3,3676.5,2.71992]
[1718026523255,8.1588,3677.2,3676.5,2.71992]
[1718026524884,0.05013576,3677.1,3676.5,2.71992]
[1718026525107,8.1588,3677.0,3676.5,2.71992]
[1718026525591,0.05013576,3676.9,3676.5,2.71992]
[1718026525789,8.1588,3676.8,3676.5,2.71992]
[1718026525992,8.20915686,3676.8,3676.5,2.71992]
[1718026526600,8.20915686,3676.8,3676.7,2.71983]
[1718026526771,8.1588,3676.8,3676.7,5.71983]
[1718026527088,8.1588,3676.8,3676.7,9.23473]
[1718026527089,8.20915686,3676.8,3676.7,9.23473]
[1718026527765,8.1588,3676.8,3676.7,9.23473]
[1718026528069,8.20926156,3676.8,3676.7,9.23473]
[1718026530073,0.05046156,3676.8,3676.7,5.71983]
[1718026530503,1.926,3677.5,3676.7,5.71983]
[1718026530690,1.926,3677.5,3676.8,3.0]
[1718026530895,0.05114798,3677.4,3676.8,3.0]
[1718026531079,0.5603048,3677.3,3676.9,2.71968]
[1718026531393,0.05103166,3677.2,3676.9,2.71968]
[1718026531617,0.5603048,3677.3,3676.9,2.71968]
[1718026531810,0.10207268,3677.1,3676.9,2.71968]
[1718026532111,0.5603048,3677.3,3676.8,3.0]
[1718026532321,0.5603048,3677.3,3676.7,3.0]
[1718026532322,0.10185745,3677.0,3676.7,3.0]
[1718026532620,0.10185745,3676.9,3676.6,2.71988]
[1718026532780,0.24863048,3677.2,3676.6,2.71988]
[1718026532979,0.10185745,3676.8,3676.6,2.71988]
[1718026533299,0.35282853,3677.1,3676.6,2.71988]
[1718026533519,0.10185745,3676.7,3676.6,2.71988]
[1718026533686,0.35282853,3677.1,3676.6,2.71988]
[1718026534023,0.10173528,3677.0,3676.6,2.71988]
[1718026535611,0.09961917,3676.9,3676.6,2.71988]
[1718026535822,0.24863048,3677.2,3676.6,2.71988]
[1718026536002,0.09961917,3676.8,3676.6,2.71988]
[1718026536212,0.24863048,3677.2,3676.6,2.71988]
[1718026536412,0.09961917,3676.7,3676.6,2.71988]
[1718026536611,0.24863048,3677.2,3676.6,2.71988]
[1718026536815,0.09961917,3676.7,3676.6,2.71988]
[1718026537034,0.24863048,3677.2,3676.6,2.71988]
[1718026537208,0.09961917,3676.7,3676.6,2.71988]
[1718026537405,0.24863048,3677.2,3676.6,2.71988]
[1718026537713,0.09961917,3676.7,3676.3,5.72009]
[1718026537916,0.24863048,3677.2,3676.3,5.72009]
[1718026538088,0.42783653,3677.1,3676.3,5.72009]
[1718026538288,0.5274557,3677.1,3676.3,5.72009]
[1718026538951,2.71968,3676.9,3676.3,5.72009]
[1718026539436,2.71968,3676.9,3676.0,10.00031]
[1718026539619,1.926,3676.7,3676.0,10.00031]
[1718026540550,4.64589,3676.7,3676.0,7.28]
[1718026540900,0.09933967,3676.6,3676.0,7.28]
[1718026543496,2.72001,3676.5,3676.0,7.28]
[1718026544151,0.09917074,3676.4,3676.0,7.28]
[1718026544832,0.09917074,3676.4,3675.7,2.72056]
[1718026545035,0.09917074,3676.4,3675.8,3.0]
[1718026545403,0.09917074,3676.4,3675.9,2.72039]
[1718026545595,0.86591357,3676.8,3675.9,2.72039]
[1718026545799,0.09917657,3676.3,3675.9,2.72039]
[1718026545997,0.70716536,3676.7,3675.9,2.72039]
[1718026546323,0.09917657,3676.2,3675.9,2.72039]
[1718026546531,0.70716536,3676.7,3675.9,2.72039]
[1718026546699,2.71974,3676.9,3676.1,2.72022]
[1718026546905,0.09917657,3676.6,3676.1,2.72022]
[1718026547101,2.71974,3676.9,3676.1,2.72022]
[1718026547631,0.0990601,3676.8,3676.1,2.72022]
[1718026548396,2.71948,3677.2,3676.3,2.72008]
[1718026548630,0.09917076,3676.7,3676.3,2.72008]
[1718026548903,2.991428,3677.2,3676.5,2.71993]
[1718026549402,0.09917076,3677.1,3676.5,2.71993]
[1718026550636,0.09917076,3677.1,3676.7,2.7198]
[1718026551202,2.71901,3677.8,3676.9,2.71965]
[1718026551414,0.09933383,3677.0,3676.9,2.71965]
[1718026551739,2.71901,3677.8,3676.9,2.71965]
[1718026552103,8.158,3677.7,3676.9,2.71965]
[1718026552303,1.622121,3677.6,3676.9,2.71965]
[1718026552536,8.158,3677.5,3676.9,2.71965]
[1718026552920,0.09933383,3677.4,3676.9,2.71965]
[1718026553235,8.158,3677.3,3676.9,2.71965]
[1718026553645,0.09982298,3677.2,3676.9,2.71965]
[1718026553806,8.158,3677.1,3676.9,2.71965]
[1718026554138,8.25782298,3677.1,3676.9,2.71965]
[1718026557441,8.25782298,3677.1,3677.0,3.0]
[1718026557738,0.1249736,3678.1,3677.0,3.0]
[1718026558138,0.10014318,3678.0,3677.0,3.0]
[1718026559558,0.10014318,3678.0,3677.5,2.71919]
[1718026560558,0.10014318,3678.0,3677.2,2.71943]
[1718026560728,0.67613486,3678.0,3677.3,3.0]
[1718026561461,0.67613486,3678.0,3677.4,2.7193]
[1718026562429,1.926,3677.8,3677.3,3.0]
[1718026562646,0.26021349,3677.7,3677.2,3.0]
[1718026563058,0.10048665,3677.6,3677.2,3.0]
[1718026563227,3.6432,3677.5,3676.9,7.28]
[1718026563428,3.6432,3677.5,3677.0,3.0]
[1718026563736,0.10048665,3677.4,3677.0,3.0]
[1718026563949,0.37436867,3677.3,3677.0,3.0]
[1718026564253,0.09946179,3677.2,3676.5,2.71993]
[1718026565356,0.37436867,3677.3,3676.5,2.71993]
[1718026565533,0.37436867,3677.3,3676.6,3.0]
[1718026566143,3.09379867,3677.3,3676.6,3.0]
[1718026566464,0.96507438,3677.2,3676.6,3.0]
[1718026566661,0.96507438,3677.2,3676.4,3.0]
[1718026567068,0.96507438,3677.2,3676.4,5.72]
[1718026567726,0.96507438,3677.2,3676.6,2.71986]
[1718026568756,0.09877451,3677.2,3676.6,2.71986]
[1718026569264,2.71919,3677.6,3676.6,2.71986]
[1718026569467,0.64855315,3677.5,3676.6,2.71986]
[1718026570466,0.64855315,3677.5,3676.8,2.71971]
[1718026571566,0.09855315,3677.5,3676.8,2.71971]
[1718026571755,0.59894881,3677.5,3676.8,2.71971]
[1718026572867,4.15944881,3677.5,3676.8,2.71971]
[1718026574933,4.15944881,3677.5,3677.0,2.71957]
[1718026575138,0.09855315,3677.5,3677.0,2.71957]
[1718026575688,0.26021349,3677.7,3677.0,2.71957]
[1718026575881,0.09874538,3677.4,3677.0,2.71957]
[1718026576093,0.26021349,3677.7,3677.0,2.71957]
[1718026576370,0.09874538,3677.3,3677.0,2.71957]
[1718026576574,6.27948,3677.9,3677.3,2.71937]
[1718026578449,4.64476,3678.2,3677.3,2.71937]
[1718026578864,2.71888,3678.0,3677.3,2.71937]
[1718026579258,8.1574,3677.9,3677.3,2.71937]
[1718026579459,9.45012536,3677.9,3677.3,2.71937]
[1718026584645,0.09919391,3677.8,3677.3,2.71937]
[1718026585887,8.1574,3677.7,3677.3,2.71937]
[1718026586273,0.09919391,3677.6,3677.3,2.71937]
[1718026593062,3.68159391,3677.6,3677.0,9.99955]
[1718026593265,8.98305939,3677.5,3677.0,9.99955]
[1718026593451,0.09954332,3677.4,3677.0,7.28]
[1718026594592,0.09954332,3677.4,3676.7,2.71979]
[1718026594886,1.53842727,3677.3,3676.7,2.71979]
[1718026595086,5.5084,3676.9,3676.4,7.28]
[1718026595394,0.09926376,3676.8,3676.1,2.72026]
[1718026596196,0.09926376,3676.8,3676.0,12.33]
[1718026597003,2.71983,3676.7,3676.0,12.33]
[1718026597204,0.83274938,3676.6,3676.0,12.33]
[1718026597364,1.926,3676.5,3676.0,12.33]
[1718026597720,0.09787724,3676.4,3675.5,7.28]
[1718026597998,2.8153,3676.3,3675.5,7.28]
[1718026598578,0.09787724,3676.2,3675.5,7.28]
[1718026598895,0.92880596,3676.2,3675.5,7.28]
[1718026599255,2.72031,3676.1,3675.1,22.61]
[1718026599491,2.72031,3676.1,3675.2,3.0]
[1718026599687,0.09767325,3676.0,3675.2,3.0]
[1718026599887,0.74409445,3676.0,3675.2,3.0]
[1718026601381,0.09767325,3676.0,3675.2,3.0]
[1718026601561,0.09767325,3676.0,3675.2,5.72092]
[1718026601755,2.8153,3676.3,3675.2,5.72092]
[1718026602091,4.64602,3676.5,3675.2,8.36962]
[1718026602778,0.09727689,3676.4,3675.2,8.36962]
[1718026602982,0.09727689,3676.4,3675.2,9.934582]
[1718026602983,0.85491658,3676.4,3675.2,9.934582]
[1718026603185,0.85491658,3676.4,3675.5,2.72071]
[1718026603713,0.09727689,3676.4,3675.8,2.72049]
[1718026603884,2.71974,3676.9,3675.8,2.72049]
[1718026604215,8.25472935,3676.8,3675.8,2.72049]
[1718026604909,8.25472935,3676.8,3676.1,2.72026]
[1718026605074,8.25472935,3676.8,3676.1,2.992286]
[1718026605268,8.25472935,3676.8,3676.3,2.7201]
[1718026606231,8.25472935,3676.8,3676.5,2.71992]
[1718026607466,8.25472935,3676.8,3676.0,2.8548]
[1718026607670,8.25472935,3676.8,3676.1,5.72023]
[1718026608283,8.25472935,3676.8,3676.4,2.72002]
[1718026610283,8.25472935,3676.8,3676.1,5.72025]
[1718026613090,10.98092935,3676.8,3676.1,5.72025]
[1718026613513,10.98092935,3676.8,3676.1,3.0]
[1718026613722,2.71991,3676.6,3675.7,3.0]
[1718026613885,8.805522,3676.5,3675.7,3.0]
[1718026614591,8.255522,3676.5,3675.8,2.72045]
[1718026614782,8.255522,3676.5,3676.0,2.72031]
[1718026615261,8.255522,3676.5,3676.2,2.72018]
[1718026616378,9.3536942,3676.5,3675.9,5.72039]
[1718026616544,8.255522,3676.5,3675.9,5.72039]
[1718026617141,2.72005,3676.4,3675.9,3.0]
[1718026617440,0.09809866,3676.3,3675.7,3.0]
[1718026620399,0.09809866,3676.3,3675.8,2.72047]
[1718026620564,0.09809866,3676.3,3675.9,3.0]
[1718026620897,0.09809866,3676.3,3675.6,7.28]
[1718026621182,0.09809866,3676.3,3675.7,3.0]
[1718026623014,1.19565353,3676.3,3675.7,3.0]
[1718026623184,1.19565353,3676.3,3675.6,7.28]
[1718026624591,5.5473,3676.2,3675.6,7.28]
[1718026624995,0.0979763,3676.1,3675.6,7.28]
[1718026625217,0.0979763,3676.1,3675.5,2.72066]
[1718026625376,0.0979763,3676.1,3675.6,3.0]
[1718026628100,0.0979763,3676.1,3675.7,2.72055]
[1718026630496,0.0979763,3676.1,3675.7,3.292605]
[1718026630794,8.1574,3676.5,3675.7,0.572055]
[1718026631002,0.09764411,3676.0,3675.8,5.12009]
[1718026631201,8.1574,3676.5,3675.9,3.0]
[1718026631392,8.1314,3676.5,3676.0,2.72033]
[1718026631595,2.4937,3676.4,3675.7,2.72054]
[1718026633243,8.1314,3676.5,3675.4,3.0]
[1718026633244,8.1314,3676.5,3676.0,2.72032]
[1718026633594,8.1314,3676.5,3676.2,2.72016]
[1718026636001,8.1314,3676.5,3676.4,2.72005]
[1718026636725,8.1314,3676.5,3676.4,5.72005]
[1718026643657,8.1314,3676.5,3676.4,3.0]
[1718026643827,8.1314,3676.5,3676.2,3.0]
[1718026644763,0.09795808,3676.4,3676.2,3.0]
[1718026645184,8.1314,3676.5,3676.2,3.0]
[1718026645387,8.1314,3676.5,3676.3,2.72012]
[1718026645686,8.1314,3676.5,3676.4,3.0]
[1718026646184,8.1314,3676.5,3676.3,2.72012]
[1718026646388,2.4093,3676.4,3676.0,5.72028]
[1718026647164,2.4093,3676.4,3676.2,2.72019]
[1718026647670,2.4093,3676.4,3676.0,3.0]
[1718026647848,2.4093,3676.4,3675.9,2.72035]
[1718026648049,2.4093,3676.4,3676.1,2.72026]
[1718026650782,2.4093,3676.4,3676.0,3.0]
[1718026651098,2.4093,3676.4,3675.9,3.0]
[1718026651266,0.799,3676.2,3675.9,3.0]
[1718026653971,0.799,3676.0,3675.8,2.72043]
[1718026654584,0.799,3676.0,3675.5,2.72065]
[1718026654770,0.799,3675.8,3675.5,2.72065]
[1718026656113,0.799,3675.8,3675.6,3.0]
[1718026656909,0.799,3675.8,3675.2,2.72087]
[1718026657109,0.799,3675.6,3675.3,3.0]
[1718026659780,0.09725285,3675.5,3675.3,3.0]
[1718026661957,0.799,3675.4,3675.2,2.72087]
[1718026662136,0.09724122,3675.3,3675.2,2.72087]
[1718026662328,0.799,3675.4,3675.2,2.72087]
[1718026667144,0.799,3675.4,3674.9,2.7211]
[1718026667343,0.799,3675.4,3675.0,3.0]
[1718026667545,0.799,3675.4,3675.1,2.72101]
[1718026673233,3.1102,3675.7,3675.2,2.72086]
[1718026673435,8.1314,3675.6,3675.2,2.72086]
[1718026673747,0.09643537,3675.5,3675.2,2.72086]
[1718026673948,0.89543537,3675.5,3675.2,3.292946]
[1718026674136,0.89543537,3675.5,3675.2,2.72086]
[1718026677366,8.1314,3675.4,3675.0,3.0]
[1718026677538,0.09623522,3675.3,3675.0,3.0]
[1718026677736,0.09623522,3675.3,3675.1,2.72101]
[1718026680289,0.89523522,3675.3,3675.0,3.0]
[1718026680463,0.89523522,3675.3,3674.9,3.0]
[1718026681178,0.89523522,3675.3,3674.9,5.72108]
[1718026681549,0.89523522,3675.3,3675.1,2.72101]
[1718026682119,0.09623522,3675.3,3675.1,2.72101]
[1718026682390,0.09623522,3675.3,3675.2,0.572101]
[1718026683384,0.09623522,3675.3,3675.1,2.72101]
[1718026687554,8.1314,3675.4,3675.1,2.72101]
[1718026688369,8.1314,3675.4,3675.1,3.52001]
[1718026691718,8.1314,3675.4,3675.3,0.799]
[1718026692334,8.1314,3675.4,3675.3,1.65515215]
[1718026692496,8.1314,3675.4,3675.3,3.1679614]
[1718026692825,8.1314,3675.4,3675.3,6.1679614]
[1718026693391,8.1314,3675.4,3675.3,5.3689614]
[1718026693598,8.1314,3675.4,3675.3,5.31180925]
[1718026694330,8.1314,3675.4,3675.3,6.1679614]
[1718026694485,8.1314,3675.4,3675.3,5.31180925]
[1718026695895,8.1314,3675.4,3675.3,6.1679614]
[1718026696522,8.1314,3675.4,3675.3,5.31180925]
[1718026697021,8.1314,3675.4,3675.3,6.45334545]
[1718026698699,1e-05,3675.4,3675.3,19.41231225]
[1718026698924,0.006,3677.2,3676.0,2.3136]
[1718026699104,4.2,3678.0,3677.5,2.71918]
[1718026699306,4.2,3678.0,3676.7,2.3136]
[1718026699307,4.2,3678.0,3677.7,2.71907]
[1718026699691,4.2,3678.0,3677.8,3.0]
[1718026700931,4.2,3678.0,3677.1,1.14022951]
[1718026700932,0.799,3677.9,3677.2,2.71941]
[1718026701096,0.799,3677.9,3677.3,3.0]
[1718026701438,4.199,3678.0,3677.4,0.799]
[1718026701727,4.199,3678.0,3677.3,3.0]
[1718026701933,4.199,3678.0,3677.4,0.799]
[1718026702897,4.199,3678.0,3677.4,4.170131]
[1718026703425,4.199,3678.0,3677.4,3.371131]
[1718026703893,4.199,3678.0,3677.4,2.71929]
[1718026704443,4.199,3678.0,3677.7,0.799]
[1718026704644,0.09012407,3677.9,3677.7,3.799]
[1718026706499,0.09012407,3677.9,3677.8,2.71901]
[1718026706636,0.09012407,3677.9,3677.8,5.71901]
[1718026706962,0.09012407,3677.9,3677.8,6.670811]
[1718026709560,0.09012407,3677.9,3677.8,7.469811]
[1718026710866,0.09012407,3677.9,3677.8,6.670811]
[1718026711074,0.09012407,3677.9,3677.8,5.71901]
[1718026711533,0.09012407,3677.9,3677.8,6.51801]
[1718026711934,0.09012407,3677.9,3677.8,5.71901]
[1718026712850,0.09012407,3677.9,3677.8,6.51801]
[1718026714444,0.09012407,3677.9,3677.8,5.71901]
[1718026714854,0.09012407,3677.9,3677.8,3.0]
[1718026715060,3.25562407,3677.9,3677.5,2.71921]
[1718026715265,3.25562407,3677.9,3677.6,3.0]
[1718026715558,0.09012407,3677.9,3677.7,2.71909]
[1718026715756,0.09012407,3677.9,3677.8,0.799]
[1718026716065,0.09012407,3677.9,3677.8,3.799]
[1718026716365,0.09012407,3677.9,3677.8,3.0]
[1718026718473,2.38122407,3677.9,3677.5,3.0]
[1718026719246,0.09012407,3677.9,3677.5,3.0]
[1718026723379,0.09012407,3677.9,3677.6,0.65183]
[1718026723985,0.09012407,3677.9,3677.5,3.0]
[1718026725269,0.09012407,3677.9,3677.6,2.71915]
[1718026725587,0.09012407,3677.9,3677.7,3.0]
[1718026727569,0.09012407,3677.9,3677.4,3.0]
[1718026731891,0.799,3677.8,3677.4,3.0]
[1718026732190,0.88954957,3677.8,3677.4,3.0]
[1718026732351,0.09054957,3677.8,3677.4,3.0]
[1718026732748,0.88954957,3677.8,3677.4,3.0]
[1718026732987,0.799,3677.6,3677.4,3.0]
[1718026733283,0.799,3677.6,3677.1,3.0]
[1718026733284,0.09047377,3677.5,3677.1,3.0]
[1718026733853,0.799,3677.4,3677.1,3.0]